bitfinex/quotes_SOLUSD_20250414
["timestamp","ask_amount","ask_price","bid_price","bid_amount"]
[1744663031891,0.063,129.93,129.9,27.100817]
[1744663032202,0.063,129.93,129.9,26.53217072]
[1744663032493,0.063,129.93,129.89,34.23067072]
[1744663032679,26.53217072,129.92,129.88,45.47775543]
[1744663034292,26.59517072,129.93,129.88,45.47775543]
[1744663034483,26.59517072,129.93,129.89,26.53217072]
[1744663036092,26.59517072,129.93,129.89,34.23057072]
[1744663037395,34.29157072,129.93,129.88,37.35217072]
[1744663037691,26.53217072,129.89,129.85,7.7011]
[1744663037900,7.7594,129.93,129.84,7.7016]
[1744663037901,26.53217072,129.88,129.84,7.7016]
[1744663038074,26.0,129.9,129.82,6.415]
[1744663038075,26.53217072,129.86,129.82,6.415]
[1744663038274,26.53217072,129.85,129.8,34.23597072]
[1744663038610,26.53217072,129.81,129.79,0.03]
[1744663038896,26.53217072,129.8,129.79,0.03]
[1744663040465,26.53217072,129.82,129.79,0.03]
[1744663040692,26.53217072,129.83,129.79,26.56217072]
[1744663040895,26.53217072,129.82,129.79,0.03]
[1744663041195,26.53217072,129.81,129.79,0.03]
[1744663043289,26.53217072,129.82,129.79,0.03]
[1744663044197,26.53217072,129.81,129.79,0.03]
[1744663045497,34.23587072,129.81,129.79,0.03]
[1744663045701,26.53217072,129.8,129.79,0.03]
[1744663046278,26.53217072,129.82,129.79,0.03]
[1744663046906,26.53217072,129.81,129.79,0.03]
[1744663047203,26.53217072,129.8,129.79,0.03]
[1744663047897,7.7031,129.82,129.79,0.03]
[1744663048105,26.53217072,129.81,129.79,0.03]
[1744663049105,34.23567072,129.81,129.79,0.03]
[1744663049802,26.53217072,129.81,129.79,0.03]
[1744663051298,16.61415892,129.81,129.79,0.03]
[1744663052512,16.61415892,129.8,129.79,0.03]
[1744663052811,16.61415892,129.81,129.79,0.03]
[1744663053498,16.61415892,129.8,129.79,0.03]
[1744663053904,16.61415892,129.81,129.79,0.03]
[1744663054107,24.31795892,129.81,129.79,0.03]
[1744663054594,16.61415892,129.81,129.79,0.03]
[1744663054796,16.61415892,129.8,129.79,0.03]
[1744663056590,24.31825892,129.8,129.79,0.03]
[1744663059315,16.61415892,129.81,129.79,0.03]
[1744663059506,80.8,129.83,129.79,0.03]
[1744663059507,97.41415892,129.83,129.79,0.03]
[1744663059713,80.8,129.83,129.8,16.61415892]
[1744663059904,16.61415892,129.87,129.82,16.61415892]
[1744663060212,16.61415892,129.89,129.85,16.61415892]
[1744663060390,16.61415892,129.89,129.84,16.61415892]
[1744663060713,24.31305892,129.89,129.84,16.61415892]
[1744663060891,16.61415892,129.87,129.81,10.82]
[1744663061215,16.61415892,129.87,129.82,16.61415892]
[1744663061405,24.31455892,129.87,129.82,24.31695892]
[1744663061600,16.61415892,129.86,129.82,24.31695892]
[1744663061803,16.61415892,129.86,129.81,24.31745892]
[1744663062921,24.31515892,129.86,129.81,24.31745892]
[1744663063094,16.61415892,129.85,129.81,24.31745892]
[1744663065726,24.31515892,129.86,129.81,24.31745892]
[1744663068027,16.61415892,129.85,129.81,24.31745892]
[1744663069124,24.31495892,129.86,129.81,24.31745892]
[1744663069331,16.61415892,129.86,129.81,24.31745892]
[1744663070825,24.31445892,129.87,129.82,24.31655892]
[1744663071330,16.61415892,129.86,129.81,24.31745892]
[1744663073131,24.31505892,129.86,129.81,24.31745892]
[1744663075541,100.048,129.89,129.81,24.31745892]
[1744663075542,24.31535892,129.85,129.81,24.31745892]
[1744663077031,16.61415892,129.84,129.8,7.704]
[1744663077233,16.61415892,129.84,129.79,32.36105892]
[1744663077444,24.31535892,129.85,129.8,16.61415892]
[1744663079832,24.31535892,129.85,129.81,7.7035]
[1744663080736,24.31535892,129.85,129.8,24.31805892]
[1744663082821,80.8,129.89,129.83,16.61415892]
[1744663083026,97.41415892,129.89,129.84,16.61415892]
[1744663083342,91.42086176,129.89,129.84,10.62086176]
[1744663083539,10.62086176,129.86,129.81,10.62086176]
[1744663083835,10.62086176,129.84,129.79,8.0424]
[1744663084045,10.62086176,129.83,129.79,15.7468]
[1744663084210,10.82,129.85,129.79,0.03]
[1744663084415,10.62086176,129.8,129.79,0.03]
[1744663084748,7.7047,129.79,129.75,0.03]
[1744663085038,36.62086176,129.76,129.75,0.03]
[1744663086835,44.32736176,129.76,129.75,0.03]
[1744663087137,50.33906623,129.76,129.75,0.03]
[1744663087437,42.63256623,129.76,129.75,0.03]
[1744663088940,50.33906623,129.76,129.75,0.03]
[1744663090022,69.4151998,129.76,129.75,0.03]
[1744663091442,50.33906623,129.76,129.75,0.03]
[1744663096731,50.33906623,129.76,129.74,0.03]
[1744663096732,19.07613357,129.75,129.74,0.03]
[1744663096927,46.5286998,129.75,129.73,0.03]
[1744663097125,35.7086998,129.74,129.73,0.03]
[1744663097331,16.63256623,129.74,129.73,0.03]
[1744663099220,24.34026623,129.74,129.73,0.03]
[1744663099427,43.4163998,129.74,129.73,0.03]
[1744663099644,43.55856137,129.74,129.73,0.03]
[1744663099847,61.8157276,129.74,129.73,0.03]
[1744663100151,59.26513246,129.72,129.71,1.6820548]
[1744663100326,159.14126603,129.72,129.71,1.6820548]
[1744663100525,159.2834276,129.72,129.71,1.6820548]
[1744663100739,159.14126603,129.72,129.71,1.6820548]
[1744663101249,131.14146623,129.72,129.71,1.6820548]
[1744663102527,147.77403246,129.72,129.71,1.6820548]
[1744663103238,131.14146623,129.72,129.71,1.6820548]
[1744663105155,43.33579514,129.7,129.63,0.03]
[1744663105349,0.14216157,129.59,129.51,30.0]
[1744663105643,16.63256623,129.52,129.51,30.0]
[1744663105854,27.45256623,129.52,129.51,30.0]
[1744663106038,26.0,129.52,129.51,30.0]
[1744663106346,53.45256623,129.52,129.51,30.0]
[1744663106549,53.45256623,129.52,129.49,47.84578275]
[1744663106857,53.45256623,129.52,129.49,46.84578275]
[1744663106858,16.63256623,129.5,129.49,46.84578275]
[1744663107230,63.53027182,129.52,129.49,46.84578275]
[1744663107748,63.53027182,129.52,129.47,26.71027182]
[1744663108055,26.71027182,129.51,129.47,26.71027182]
[1744663108431,7.7192,129.55,129.5,26.71027182]
[1744663108650,26.71027182,129.52,129.48,26.71027182]
[1744663108947,26.71027182,129.52,129.47,0.14216157]
[1744663109152,26.71027182,129.52,129.47,26.71027182]
[1744663109352,52.71027182,129.52,129.47,26.71027182]
[1744663109544,26.71027182,129.49,129.45,9.2333911]
[1744663109947,26.71027182,129.48,129.45,9.2333911]
[1744663110141,26.71027182,129.49,129.45,9.2333911]
[1744663110549,26.71027182,129.48,129.45,9.2333911]
[1744663110848,26.71027182,129.48,129.45,2.7589911]
[1744663112241,26.71027182,129.47,129.45,2.7589911]
[1744663113458,88.5222,129.5,129.45,2.7589911]
[1744663113635,26.71027182,129.48,129.45,2.7589911]
[1744663114454,26.71027182,129.49,129.45,29.46926292]
[1744663114664,107.51027182,129.5,129.45,29.46926292]
[1744663116261,26.71027182,129.48,129.45,2.7589911]
[1744663116670,26.71027182,129.49,129.45,2.7589911]
[1744663116853,26.71027182,129.48,129.45,2.7589911]
[1744663117239,26.71027182,129.46,129.45,2.7589911]
[1744663118269,78.0410089,129.44,129.37,1.5447]
[1744663118447,26.71027182,129.41,129.39,0.03]
[1744663120362,104.75128072,129.43,129.39,0.03]
[1744663120858,78.0410089,129.47,129.4,26.71027182]
[1744663121063,26.0,129.44,129.4,26.71027182]
[1744663121558,52.71027182,129.44,129.4,34.43777182]
[1744663123841,38.07027182,129.46,129.42,26.71027182]
[1744663124061,38.07027182,129.46,129.41,2.21234628]
[1744663124245,38.07027182,129.46,129.42,26.71027182]
[1744663124946,11.36,129.46,129.42,26.71027182]
[1744663126267,11.36,129.46,129.43,7.7261]
[1744663126862,11.36,129.46,129.43,34.43637182]
[1744663127249,11.36,129.46,129.43,7.7261]
[1744663127463,78.0410089,129.47,129.45,27.2789181]
[1744663127664,78.0410089,129.53,129.47,0.56864628]
[1744663127868,104.75128072,129.53,129.48,26.71027182]
[1744663128560,104.75128072,129.53,129.49,7.7226]
[1744663129271,104.75128072,129.53,129.49,34.43287182]
[1744663130374,78.0410089,129.53,129.49,34.43287182]
[1744663130869,104.75128072,129.53,129.49,34.43287182]
[1744663131056,78.0410089,129.53,129.5,26.71027182]
[1744663132555,38.13327182,129.55,129.51,34.43167182]
[1744663132756,38.13327182,129.55,129.51,7.7214]
[1744663133753,11.423,129.55,129.51,34.43167182]
[1744663134680,38.13327182,129.55,129.51,7.7214]
[1744663135779,38.13327182,129.55,129.51,34.43167182]
[1744663135972,26.77327182,129.55,129.51,34.43167182]
[1744663137174,16.74342565,129.55,129.51,24.40182565]
[1744663138257,16.74342565,129.55,129.51,7.7214]
[1744663139874,0.063,129.55,129.51,24.40182565]
[1744663140380,16.74342565,129.55,129.51,7.7214]
[1744663140791,16.74342565,129.55,129.52,16.68042565]
[1744663140792,0.063,129.55,129.52,16.68042565]
[1744663140969,0.063,129.55,129.51,27.16706157]
[1744663141170,16.74342565,129.55,129.51,7.7214]
[1744663142083,16.68042565,129.54,129.51,7.7214]
[1744663142494,16.68042565,129.53,129.51,7.7214]
[1744663144068,16.68042565,129.52,129.49,1.5853]
[1744663144272,16.68042565,129.52,129.49,9.3077]
[1744663144489,16.68042565,129.54,129.5,0.56864628]
[1744663144670,16.68042565,129.54,129.5,17.24907193]
[1744663145192,26.75501706,129.55,129.5,27.26066334]
[1744663146097,26.75501706,129.55,129.51,7.7214]
[1744663146278,0.063,129.55,129.52,0.56864628]
[1744663146484,78.1040089,129.61,129.56,0.28432314]
[1744663146684,0.063,129.61,129.59,26.69201706]
[1744663146999,0.063,129.61,129.58,26.69201706]
[1744663147569,0.063,129.61,129.6,26.69201706]
[1744663148191,0.063,129.61,129.6,34.40801706]
[1744663148774,0.063,129.61,129.6,34.97666334]
[1744663148978,0.063,129.61,129.6,88.29912926]
[1744663149180,0.0001,129.61,129.6,88.29912926]
[1744663151802,0.0001,129.62,129.61,0.56864628]
[1744663152102,0.0001,129.62,129.61,45.9103122]
[1744663152402,0.0001,129.62,129.61,53.6257122]
[1744663158306,0.0001,129.62,129.61,7.7154]
[1744663158508,0.0001,129.62,129.61,34.40741706]
[1744663161322,0.0001,129.62,129.61,53.6257122]
[1744663162413,0.063,129.68,129.62,19.21829514]
[1744663162583,0.063,129.68,129.67,26.69201706]
[1744663164211,0.063,129.68,129.67,34.40381706]
[1744663165915,0.063,129.68,129.67,7.7118]
[1744663166594,0.063,129.68,129.65,26.69201706]
[1744663167190,0.063,129.68,129.65,16.64379459]
[1744663167890,16.64379459,129.67,129.63,24.35799459]
[1744663168312,16.64379459,129.67,129.63,7.7142]
[1744663168516,16.64379459,129.67,129.63,24.35799459]
[1744663168824,42.70679459,129.68,129.63,24.35799459]
[1744663169816,50.41819459,129.68,129.63,24.35799459]
[1744663173213,26.063,129.68,129.65,16.64379459]
[1744663173423,0.063,129.68,129.65,16.64379459]
[1744663173715,0.063,129.68,129.66,16.64379459]
[1744663173919,0.063,129.68,129.67,16.64379459]
[1744663174094,0.063,129.68,129.66,16.64379459]
[1744663174291,0.063,129.68,129.65,16.64379459]
[1744663174510,0.063,129.68,129.66,16.64379459]
[1744663174715,0.063,129.68,129.67,16.64379459]
[1744663175411,0.063,129.68,129.67,24.35559459]
[1744663178294,0.063,129.68,129.67,24.92424087]
[1744663179815,0.063,129.68,129.67,7.7118]
[1744663179998,0.063,129.68,129.66,24.35589459]
[1744663180321,0.063,129.68,129.66,7.7121]
[1744663180822,0.063,129.68,129.66,24.35589459]
[1744663181824,0.063,129.68,129.65,7.7127]
[1744663182120,0.063,129.68,129.65,24.35649459]
[1744663187721,0.063,129.68,129.67,16.64379459]
[1744663188729,0.063,129.68,129.67,17.21244087]
[1744663189735,0.063,129.68,129.67,24.92424087]
[1744663189911,0.063,129.68,129.67,8.28044628]
[1744663190107,0.063,129.68,129.67,24.92424087]
[1744663190810,0.063,129.68,129.67,7.7118]
[1744663191017,0.063,129.68,129.67,24.35559459]
[1744663192334,0.063,129.68,129.66,24.35599459]
[1744663193031,0.063,129.68,129.67,16.64379459]
[1744663193612,0.063,129.68,129.66,24.35599459]
[1744663195031,0.063,129.68,129.66,7.7122]
[1744663195327,0.063,129.68,129.66,24.35599459]
[1744663197032,0.063,129.68,129.65,24.35659459]
[1744663197927,0.063,129.68,129.66,16.64379459]
[1744663198915,0.063,129.68,129.67,16.64379459]
[1744663199120,0.063,129.68,129.67,24.35559459]
[1744663199633,0.063,129.68,129.67,7.7118]
[1744663200035,0.063,129.68,129.67,24.35559459]
[1744663201416,0.063,129.68,129.67,24.92424087]
[1744663202933,0.063,129.68,129.67,24.35559459]
[1744663205418,0.063,129.68,129.66,16.64379459]
[1744663205741,16.64379459,129.67,129.6,1.51]
[1744663206042,16.64379459,129.67,129.61,16.64379459]
[1744663206043,16.64379459,129.65,129.61,16.64379459]
[1744663206623,26.0,129.67,129.63,16.64379459]
[1744663206942,0.063,129.68,129.66,16.64379459]
[1744663207119,0.063,129.68,129.62,0.56864628]
[1744663207315,0.063,129.68,129.65,16.64379459]
[1744663207522,0.063,129.68,129.64,16.64379459]
[1744663208427,0.063,129.68,129.64,24.35679459]
[1744663208627,0.063,129.68,129.65,16.64379459]
[1744663208825,0.063,129.68,129.67,16.64379459]
[1744663210830,0.063,129.68,129.67,24.35559459]
[1744663212042,0.063,129.68,129.67,7.7118]
[1744663212342,0.063,129.68,129.66,24.35609459]
[1744663212929,0.063,129.68,129.67,16.64379459]
[1744663213628,0.063,129.68,129.66,24.35609459]
[1744663213827,0.063,129.68,129.66,16.64379459]
[1744663215058,0.063,129.68,129.64,7.7136]
[1744663215232,0.063,129.68,129.64,24.35739459]
[1744663215434,0.063,129.68,129.65,16.64379459]
[1744663215637,0.063,129.68,129.66,16.64379459]
[1744663216950,0.063,129.68,129.67,24.35559459]
[1744663217363,26.0,129.65,129.61,7.7154]
[1744663217536,16.64379459,129.64,129.59,26.12945616]
[1744663218961,16.64379459,129.62,129.58,27.88308193]
[1744663219631,78.0410089,129.67,129.61,16.92811773]
[1744663219836,94.68480349,129.67,129.62,16.64379459]
[1744663221043,94.68480349,129.67,129.62,24.35839459]
[1744663221266,78.0410089,129.67,129.64,17.21244087]
[1744663221476,0.063,129.68,129.66,16.64379459]
[1744663221654,0.063,129.68,129.67,16.64379459]
[1744663223780,0.063,129.68,129.67,43.57388973]
[1744663223975,0.063,129.74,129.69,0.56864628]
[1744663224164,0.063,129.74,129.71,16.64379459]
[1744663224365,16.64379459,129.73,129.68,17.21244087]
[1744663224560,16.64379459,129.72,129.68,16.64379459]
[1744663224775,16.64379459,129.72,129.67,24.35559459]
[1744663225076,16.64379459,129.72,129.68,16.64379459]
[1744663225880,16.64379459,129.73,129.69,7.7106]
[1744663226995,16.64379459,129.72,129.68,24.35479459]
[1744663227169,16.64379459,129.72,129.68,7.711]
[1744663227480,16.64379459,129.72,129.68,24.35479459]
[1744663229579,24.35209459,129.73,129.68,24.35479459]
[1744663230085,16.64379459,129.73,129.68,24.35479459]
[1744663230481,24.41489459,129.74,129.69,16.64379459]
[1744663230667,16.70679459,129.74,129.69,16.64379459]
[1744663230875,0.063,129.74,129.7,16.64379459]
[1744663231067,0.063,129.74,129.71,16.64379459]
[1744663232662,0.063,129.74,129.71,24.35279459]
[1744663234282,0.063,129.74,129.72,16.64379459]
[1744663234787,0.063,129.74,129.72,7.7087]
[1744663237386,0.063,129.74,129.72,24.35249459]
[1744663237582,0.063,129.74,129.72,16.64379459]
[1744663237993,0.063,129.74,129.71,16.64379459]
[1744663239392,0.063,129.74,129.72,7.7089]
[1744663240066,0.063,129.74,129.72,24.35269459]
[1744663241079,0.063,129.74,129.72,7.7089]
[1744663242092,16.70679459,129.74,129.7,16.64379459]
[1744663242295,16.64379459,129.72,129.68,16.64379459]
[1744663242496,16.64379459,129.72,129.68,24.35499459]
[1744663242863,16.64379459,129.73,129.68,24.35499459]
[1744663243368,16.64379459,129.73,129.69,16.64379459]
[1744663244178,16.64379459,129.73,129.69,24.35409459]
[1744663244899,24.35219459,129.73,129.68,24.35469459]
[1744663245195,24.35219459,129.73,129.66,19.70728471]
[1744663245196,16.64379459,129.7,129.65,24.35679459]
[1744663245372,16.64379459,129.69,129.65,24.35679459]
[1744663245902,16.64379459,129.7,129.65,24.35679459]
[1744663246095,94.68480349,129.72,129.67,16.64379459]
[1744663246271,78.0410089,129.72,129.69,7.7106]
[1744663246701,78.0410089,129.72,129.69,24.35439459]
[1744663246893,16.64379459,129.73,129.69,24.35439459]
[1744663247294,16.70679459,129.74,129.69,24.35439459]
[1744663248002,16.70679459,129.74,129.69,43.63109459]
[1744663248301,26.0,129.73,129.71,16.64379459]
[1744663248471,0.063,129.74,129.71,16.64379459]
[1744663249097,0.063,129.74,129.72,16.64379459]
[1744663249480,0.063,129.74,129.73,7.7083]
[1744663257077,0.063,129.74,129.73,24.92074087]
[1744663259204,0.063,129.74,129.72,24.35239459]
[1744663264609,0.063,129.74,129.73,24.92074087]
[1744663267100,0.063,129.74,129.73,8.27694628]
[1744663267304,0.063,129.74,129.73,18.91563624]
[1744663268120,0.063,129.74,129.7,12.33255153]
[1744663268316,10.70168996,129.74,129.7,7.7099]
[1744663268520,0.063,129.74,129.71,10.63868996]
[1744663269313,0.063,129.74,129.71,18.34758996]
[1744663269523,0.063,129.74,129.71,7.7089]
[1744663269821,0.063,129.74,129.72,10.63868996]
[1744663270021,0.063,129.74,129.71,18.34758996]
[1744663272126,0.063,129.74,129.72,10.63868996]
[1744663272704,0.063,129.74,129.71,18.34758996]
[1744663275219,26.0,129.75,129.71,18.34758996]
[1744663275434,10.63868996,129.76,129.71,18.34758996]
[1744663277436,18.34548996,129.76,129.71,18.34758996]
[1744663279428,7.7068,129.76,129.72,10.63868996]
[1744663279925,18.34548996,129.76,129.71,11.20733624]
[1744663280626,18.34548996,129.76,129.71,18.91653624]
[1744663280933,10.63868996,129.75,129.7,10.63868996]
[1744663281146,10.63868996,129.74,129.69,18.34898996]
[1744663281734,10.63868996,129.71,129.67,1.552]
[1744663281916,10.63868996,129.68,129.64,7.99762314]
[1744663282503,18.34948996,129.69,129.64,18.6363131]
[1744663282702,10.63868996,129.69,129.65,10.63868996]
[1744663283836,18.34918996,129.7,129.65,10.63868996]
[1744663284243,18.34918996,129.7,129.66,7.7124]
[1744663284420,10.84,129.72,129.67,10.63868996]
[1744663284421,10.63868996,129.71,129.67,10.63868996]
[1744663284736,10.63868996,129.71,129.66,18.35108996]
[1744663285038,18.5493,129.72,129.66,7.7124]
[1744663285039,10.63868996,129.7,129.66,7.7124]
[1744663285336,16.64385661,129.7,129.66,7.7124]
[1744663285830,16.64385661,129.71,129.66,24.35625661]
[1744663287133,24.35365661,129.71,129.66,24.35625661]
[1744663287827,24.35365661,129.71,129.67,16.64385661]
[1744663288027,10.84,129.72,129.68,16.64385661]
[1744663288228,97.44385661,129.73,129.68,16.64385661]
[1744663288908,105.15215661,129.73,129.68,16.64385661]
[1744663290550,105.15215661,129.73,129.69,7.7106]
[1744663291430,88.5083,129.73,129.69,7.7106]
[1744663291647,105.15215661,129.73,129.69,7.7106]
[1744663292441,16.64385661,129.72,129.69,7.7106]
[1744663294255,80.8,129.73,129.7,16.64385661]
[1744663294442,16.64385661,129.75,129.7,16.64385661]
[1744663295568,16.64385661,129.75,129.71,7.7095]
[1744663295934,27.48385661,129.76,129.71,24.35335661]
[1744663296355,18.5465,129.76,129.71,24.35335661]
[1744663296556,80.8,129.78,129.74,16.64385661]
[1744663296859,80.8,129.78,129.73,6.6169]
[1744663296860,16.64385661,129.79,129.75,16.64385661]
[1744663297047,18.6071,129.8,129.73,6.6169]
[1744663297048,10.903,129.8,129.76,16.64385661]
[1744663297560,10.903,129.8,129.77,7.7059]
[1744663297744,27.54685661,129.8,129.76,24.35005661]
[1744663297946,16.64385661,129.78,129.74,18.27175661]
[1744663298666,16.64385661,129.79,129.74,18.27175661]
[1744663298831,16.64385661,129.79,129.74,25.97915661]
[1744663299035,24.34855661,129.79,129.74,25.97915661]
[1744663300459,24.34855661,129.79,129.75,17.21250289]
[1744663300460,16.64385661,129.79,129.75,17.21250289]
[1744663300635,10.903,129.8,129.78,16.64385661]
[1744663300837,0.063,129.8,129.78,16.64385661]
[1744663301661,0.063,129.8,129.77,16.64385661]
[1744663302763,16.64385661,129.79,129.75,16.64385661]
[1744663303466,16.64385661,129.77,129.7,83.0]
[1744663303674,10.84,129.78,129.72,16.64385661]
[1744663303675,16.64385661,129.76,129.72,16.64385661]
[1744663303964,16.64385661,129.76,129.71,16.64385661]
[1744663304169,16.64385661,129.76,129.72,16.64385661]
[1744663304356,10.84,129.78,129.73,16.64385661]
[1744663304553,27.48385661,129.78,129.73,16.64385661]
[1744663304766,24.34975661,129.77,129.73,16.64385661]
[1744663305063,16.64385661,129.76,129.72,16.64385661]
[1744663305276,16.64385661,129.75,129.7,16.64385661]
[1744663306376,7.7077,129.74,129.7,16.64385661]
[1744663306564,24.35155661,129.74,129.69,16.64385661]
[1744663307872,24.35155661,129.74,129.69,24.35435661]
[1744663308076,24.35105661,129.75,129.71,16.64385661]
[1744663308264,26.0,129.75,129.71,16.64385661]
[1744663308570,33.7073,129.75,129.71,16.64385661]
[1744663308868,24.35025661,129.77,129.73,16.64385661]
[1744663309072,24.35025661,129.77,129.72,16.64385661]
[1744663309675,16.64385661,129.76,129.72,16.64385661]
[1744663311175,88.505,129.79,129.74,16.64385661]
[1744663311381,0.063,129.8,129.78,16.64385661]
[1744663311583,0.063,129.8,129.79,16.64385661]
[1744663312175,0.063,129.8,129.79,17.21250289]
[1744663312762,0.063,129.8,129.79,16.64385661]
[1744663312964,0.063,129.8,129.79,17.21250289]
[1744663313366,0.063,129.8,129.79,24.91720289]
[1744663313881,0.063,129.8,129.79,8.91720289]
[1744663318380,0.063,129.8,129.79,27.56685175]
[1744663318752,0.063,129.81,129.8,20.25154886]
[1744663318957,0.063,129.81,129.8,43.32310547]
[1744663319496,0.063,129.82,129.81,19.21829514]
[1744663319780,0.063,129.82,129.81,35.86215175]
[1744663320478,0.063,129.82,129.81,24.91600289]
[1744663324684,0.063,129.82,129.81,43.56565175]
[1744663325082,0.063,129.82,129.81,24.91600289]
[1744663326581,0.063,129.82,129.81,16.64385661]
[1744663326979,0.063,129.82,129.81,35.29350547]
[1744663327186,0.0001,129.82,129.81,35.29350547]
[1744663328065,0.0001,129.82,129.81,42.99700547]
[1744663328489,0.0001,129.82,129.81,43.56565175]
[1744663329967,0.0001,129.82,129.81,24.48951818]
[1744663331467,0.0001,129.82,129.76,90.31262741]
[1744663331468,0.0001,129.82,129.76,18.89996157]
[1744663331674,16.64385661,129.78,129.76,7.7065]
[1744663331874,16.64385661,129.77,129.74,7.7077]
[1744663332165,16.64385661,129.77,129.75,30.0]
[1744663332679,16.64385661,129.77,129.74,7.7077]
[1744663333071,33.7044,129.8,129.74,7.7077]
[1744663333271,16.64385661,129.81,129.77,16.64385661]
[1744663334682,18.5231,129.82,129.78,7.7053]
[1744663334889,16.64385661,129.81,129.78,7.7053]
[1744663335492,16.64385661,129.8,129.77,7.7056]
[1744663336890,46.64385661,129.81,129.77,7.7056]
[1744663338392,54.34745661,129.81,129.77,7.7056]
[1744663338891,16.64385661,129.8,129.77,7.7056]
[1744663341192,46.64385661,129.81,129.77,7.7056]
[1744663341386,46.64385661,129.81,129.77,24.34945661]
[1744663341594,46.64385661,129.81,129.77,7.7056]
[1744663342698,16.64385661,129.79,129.76,7.7063]
[1744663343888,16.64385661,129.8,129.76,7.7063]
[1744663344568,30.0,129.81,129.77,16.64385661]
[1744663344771,30.0,129.81,129.8,16.64385661]
[1744663345902,30.0,129.81,129.79,24.34815661]
[1744663346293,30.0,129.81,129.8,16.64385661]
[1744663346595,30.0,129.81,129.8,16.78601818]
[1744663347006,30.0,129.81,129.8,35.86215175]
[1744663348099,0.0001,129.82,129.81,0.14216157]
[1744663348273,0.0001,129.82,129.81,16.78601818]
[1744663348478,0.0001,129.82,129.81,35.86215175]
[1744663350280,0.0001,129.82,129.81,43.56565175]
[1744663350979,0.0001,129.82,129.81,24.48951818]
[1744663357206,0.0001,129.82,129.81,24.34735661]
[1744663359284,0.0001,129.82,129.81,18.32927844]
[1744663363616,0.0001,129.82,129.81,7.7035]
[1744663364614,0.0001,129.82,129.81,18.32927844]
[1744663370126,0.0001,129.82,129.81,18.47144001]
[1744663370312,0.0001,129.82,129.77,12.19477844]
[1744663370313,10.62587844,129.82,129.77,12.19477844]
[1744663370518,10.62577844,129.81,129.77,7.7059]
[1744663370817,10.62577844,129.81,129.77,18.33167844]
[1744663373833,18.32937844,129.81,129.76,21.44577844]
[1744663374131,10.62577844,129.79,129.75,10.68877844]
[1744663374518,10.62577844,129.79,129.75,0.063]
[1744663374829,10.62577844,129.79,129.75,10.68877844]
[1744663375022,10.62577844,129.79,129.75,18.39547844]
[1744663375910,18.33007844,129.8,129.75,18.39547844]
[1744663376430,10.62577844,129.8,129.76,10.62577844]
[1744663376613,20.62577844,129.81,129.76,10.62577844]
[1744663376811,20.62577844,129.81,129.77,10.62577844]
[1744663377311,20.62577844,129.81,129.77,18.33157844]
[1744663378131,28.32937844,129.81,129.77,18.33157844]
[1744663378335,20.62577844,129.81,129.77,18.33157844]
[1744663378731,10.62577844,129.8,129.76,18.33207844]
[1744663378935,10.62577844,129.8,129.76,7.7063]
[1744663381131,10.62577844,129.8,129.76,18.33207844]
[1744663381333,28.32947844,129.81,129.76,18.33207844]
[1744663381533,10.0,129.81,129.8,10.62577844]
[1744663381741,10.0,129.81,129.8,18.32987844]
[1744663384843,10.0,129.81,129.77,36.9813273]
[1744663385537,28.32937844,129.81,129.77,18.33167844]
[1744663385740,28.32937844,129.81,129.77,7.7059]
[1744663386845,7.7042,129.8,129.75,10.68877844]
[1744663387019,10.62577844,129.79,129.75,0.063]
[1744663387339,18.32997844,129.8,129.75,10.68877844]
[1744663388425,18.32997844,129.8,129.75,18.39547844]
[1744663389144,10.62577844,129.78,129.75,0.063]
[1744663389515,12.18157844,129.8,129.75,18.39577844]
[1744663389833,10.0,129.81,129.78,10.62577844]
[1744663390023,10.0,129.81,129.77,10.62577844]
[1744663390737,10.0,129.81,129.77,18.33117844]
[1744663394828,10.62577844,129.79,129.75,0.063]
[1744663395042,10.62577844,129.79,129.75,10.68877844]
[1744663395221,10.62577844,129.79,129.75,18.39567844]
[1744663395425,18.32997844,129.8,129.75,18.39567844]
[1744663396538,10.0,129.81,129.77,10.62577844]
[1744663396719,10.0,129.81,129.78,10.62577844]
[1744663398666,10.0,129.81,129.78,18.33087844]
[1744663400646,10.62577844,129.8,129.75,29.3384273]